bitfinex/quotes_ETHUSD_20251226
["timestamp","ask_amount","ask_price","bid_price","bid_amount"]
[1766739181335,0.5,2962.3,2961.9,0.9104]
[1766739182644,0.5,2962.3,2961.7,0.4288064]
[1766739182645,0.9946,2962.2,2961.7,0.4288064]
[1766739182951,1.02836667,2962.2,2961.5,3.841]
[1766739183310,1.02836667,2962.2,2961.5,4.7514]
[1766739184812,1.02836667,2962.2,2961.5,8.12805628]
[1766739185014,0.03376667,2962.2,2961.6,0.94416553]
[1766739185520,0.03576667,2962.2,2961.6,0.94416553]
[1766739186231,0.03576667,2962.2,2961.7,0.9104]
[1766739186431,3.4116404,2962.2,2961.7,0.9104]
[1766739186639,0.03576667,2962.2,2961.7,0.9104]
[1766739187650,3.41164609,2962.2,2961.7,0.9104]
[1766739188162,4.40624609,2962.2,2961.7,0.9104]
[1766739188454,1.03036667,2962.2,2961.7,0.9104]
[1766739188857,4.40624647,2962.2,2961.7,0.9104]
[1766739190262,1.03036667,2962.2,2961.7,0.9104]
[1766739191331,0.9966,2962.2,2961.8,0.03376325]
[1766739192952,0.002,2962.2,2961.8,0.9104]
[1766739193155,0.002,2962.2,2961.8,1.33909489]
[1766739194151,0.002,2962.2,2961.8,0.9104]
[1766739194752,0.9201,2962.2,2961.6,0.001]
[1766739194958,0.9201,2962.2,2961.7,0.9173]
[1766739195449,0.9201,2962.2,2961.6,0.001]
[1766739196056,0.9181,2962.0,2961.6,0.001]
[1766739196830,4.3297397,2962.2,2961.6,0.001]
[1766739197059,0.95386667,2962.2,2961.6,0.001]
[1766739197558,4.32974087,2962.2,2961.6,0.001]
[1766739197858,0.9181,2962.1,2961.6,0.001]
[1766739198860,0.9181,2962.1,2961.6,0.9183]
[1766739199159,0.9181,2962.1,2961.6,1.7320033]
[1766739200233,0.002,2962.2,2961.7,0.03376439]
[1766739201057,0.002,2962.2,2961.7,0.95106439]
[1766739206374,0.002,2962.2,2961.7,0.9173]
[1766739211082,0.002,2962.2,2961.8,0.9173]
[1766739214979,0.03576667,2962.2,2961.8,0.9173]
[1766739216580,0.002,2962.2,2961.8,0.9173]
[1766739216782,0.03576667,2962.2,2961.8,0.9173]
[1766739218904,0.95386667,2962.2,2961.6,3.841]
[1766739219301,0.9181,2962.1,2961.6,3.841]
[1766739220383,0.9181,2962.0,2961.6,3.841]
[1766739220786,0.9181,2962.0,2961.6,0.001]
[1766739234328,0.03576667,2962.2,2961.6,1.00316553]
[1766739237347,0.03576667,2962.2,2961.6,0.9694]
[1766739237826,1.02516667,2962.2,2961.6,0.9694]
[1766739243334,0.9894,2962.1,2961.6,0.001]
[1766739248741,0.03576667,2962.2,2961.7,0.9684]
[1766739249345,0.002,2962.2,2961.8,0.03376325]
[1766739250043,0.002,2962.1,2961.8,0.03376325]
[1766739250747,0.002,2962.2,2962.0,0.98527878]
[1766739250916,0.002,2962.4,2962.0,1.17409454]
[1766739253027,1.01517293,2963.2,2962.6,0.01687878]
[1766739253222,0.002,2963.2,2962.6,0.98527878]
[1766739253424,0.002,2963.2,2962.7,1.00215299]
[1766739253645,0.9894,2963.1,2962.7,0.03375299]
[1766739253822,0.9894,2963.1,2962.4,1.8544]
[1766739255359,0.9894,2963.1,2962.4,5.23000911]
[1766739256065,0.9894,2963.1,2962.5,0.01687878]
[1766739256232,0.9894,2963.1,2962.5,1.81194089]
[1766739256959,0.9894,2963.1,2962.6,0.9328]
[1766739257337,0.9914,2963.1,2962.6,0.9328]
[1766739260061,0.002,2963.1,2962.6,0.9328]
[1766739262362,0.002,2963.1,2962.7,0.9328]
[1766739263143,0.002,2963.1,2962.7,0.94967878]
[1766739263342,0.002,2963.1,2962.7,1.47010067]
[1766739265878,0.002,2963.1,2962.7,1.45322189]
[1766739266184,0.002,2963.1,2962.5,1.81194089]
[1766739266661,0.9721,2963.1,2962.5,1.81194089]
[1766739267062,0.9721,2963.1,2962.5,2.69794089]
[1766739270374,0.9721,2963.1,2962.7,0.01687878]
[1766739274967,0.002,2963.1,2962.8,0.9328]
[1766739275979,0.002,2963.2,2962.8,0.9328]
[1766739276991,0.9701,2963.1,2962.5,1.76514089]
[1766739277192,0.9701,2963.1,2962.6,0.51417177]
[1766739280300,0.9701,2963.1,2962.6,3.88956204]
[1766739280605,0.002,2963.2,2962.7,0.9328]
[1766739281371,0.002,2963.1,2962.7,0.9328]
[1766739283169,0.002,2963.1,2962.6,0.51417177]
[1766739283390,0.002,2963.1,2962.7,1.46675845]
[1766739286179,0.002,2963.3,2962.8,0.98155185]
[1766739286478,0.002,2963.3,2962.8,0.9478]
[1766739287093,0.002,2963.3,2962.9,0.48880093]
[1766739288133,0.002,2963.3,2962.8,0.9478]
[1766739288571,0.002,2963.1,2962.8,0.9478]
[1766739291096,0.002,2963.3,2962.9,0.03375071]
[1766739291293,0.002,2963.3,2963.0,0.9478]
[1766739291508,0.002,2963.3,2963.1,0.03374843]
[1766739291810,0.9025,2963.3,2962.7,0.01687878]
[1766739292178,0.9025,2963.3,2962.7,0.96467878]
[1766739295337,4.27711918,2963.3,2962.7,0.96467878]
[1766739295522,0.9025,2963.3,2962.7,0.96467878]
[1766739295722,0.9025,2963.3,2962.7,1.87317502]
[1766739296249,0.9025,2963.3,2962.8,0.03375185]
[1766739298232,4.27711731,2963.3,2962.8,0.03375185]
[1766739298740,0.9005,2963.2,2962.7,0.9478]
[1766739299033,0.9005,2963.2,2962.8,0.03375185]
[1766739299531,0.002,2963.3,2962.8,0.03375185]
[1766739300540,0.002,2963.3,2962.8,0.98155185]
[1766739302233,0.9025,2963.3,2962.8,0.98155185]
[1766739302535,0.9005,2963.1,2962.6,0.001]
[1766739303043,0.9005,2963.1,2962.6,0.03475413]
[1766739305412,0.9005,2963.1,2962.6,0.001]
[1766739307634,0.93425185,2963.1,2962.6,0.001]
[1766739307840,0.9005,2963.1,2962.6,0.001]
[1766739309455,0.9025,2963.1,2962.6,0.001]
[1766739315954,0.9025,2963.1,2962.6,0.9312]
[1766739317054,0.9025,2963.1,2962.7,0.03375299]
[1766739317227,0.9025,2963.1,2962.6,0.94807878]
[1766739318774,0.002,2963.1,2962.7,0.9302]
[1766739342302,0.002,2963.1,2962.8,0.03375185]
[1766739342794,0.03575185,2963.3,2962.9,0.9127]
[1766739343297,3.41036956,2963.3,2962.9,0.9127]
[1766739346104,0.03575185,2963.3,2962.9,0.9127]
[1766739346301,3.41038173,2963.3,2962.9,0.9127]
[1766739347888,0.002,2963.3,2962.9,0.9127]
[1766739349288,0.002,2963.3,2962.9,1.34318706]
[1766739349698,0.002,2963.3,2962.9,0.9127]
[1766739350407,3.37661703,2963.3,2962.9,0.9127]
[1766739352797,0.002,2963.3,2962.9,0.9127]
[1766739355708,0.002,2963.3,2962.8,0.01687878]
[1766739355900,0.9956,2963.2,2962.8,0.01687878]
[1766739357416,3.37662539,2963.3,2962.8,1.00567878]
[1766739357583,3.37662539,2963.3,2962.9,0.03375071]
[1766739359107,4.37222539,2963.3,2962.9,0.03375071]
[1766739359414,1.02935185,2963.2,2962.6,0.001]
[1766739361327,0.9956,2963.1,2962.6,0.001]
[1766739361610,3.40854888,2963.2,2962.6,0.001]
[1766739361611,1.02935185,2963.0,2962.6,0.001]
[1766739364012,0.9956,2962.9,2962.4,3.841]
[1766739364212,0.9956,2962.7,2962.4,3.841]
[1766739364428,0.9956,2962.7,2962.4,0.001]
[1766739367514,0.9956,2962.7,2962.5,0.001]
[1766739372633,0.03375185,2962.6,2962.4,0.001]
[1766739374239,0.03375185,2962.6,2962.5,0.001]
[1766739374830,0.94895185,2962.6,2962.0,1.00567878]
[1766739375144,0.94895185,2962.6,2962.0,1.91815372]
[1766739375312,0.94895185,2962.6,2962.0,5.29414857]
[1766739376040,0.94895185,2962.6,2962.1,3.37595885]
[1766739383046,0.94895185,2962.6,2962.1,4.28665885]
[1766739383247,0.94895185,2962.6,2962.2,0.05063747]
[1766739383442,0.9152,2962.6,2962.2,0.05063747]
[1766739383642,0.002,2962.7,2962.2,0.9150008]
[1766739383853,0.002,2962.7,2962.2,1.8257008]
[1766739384324,0.002,2962.7,2962.2,0.9150008]
[1766739384617,0.002,2962.7,2962.3,0.9107]
[1766739385021,0.9172,2963.3,2962.8,0.01687878]
[1766739385245,0.9172,2963.3,2962.8,4.33648648]
[1766739385444,0.002,2963.3,2962.8,4.33648648]
[1766739386249,0.002,2963.3,2962.8,0.96133063]
[1766739386454,0.9172,2963.3,2962.8,0.92757878]
[1766739386761,0.9172,2963.3,2962.8,4.30275467]
[1766739386961,0.9172,2963.3,2962.8,4.33650652]
[1766739391361,0.002,2963.3,2962.8,4.33650652]
[1766739393375,0.002,2963.3,2962.8,4.31962774]
[1766739399559,0.002,2963.3,2962.9,0.9107]
[1766739401684,0.002,2963.3,2962.9,4.28575945]
[1766739404289,0.002,2963.3,2963.0,0.03374957]
[1766739405886,0.002,2963.3,2962.9,4.30263823]
[1766739406085,0.002,2963.3,2963.0,4.14283555]
[1766739406292,0.002,2963.3,2963.0,3.37495496]
[1766739408494,1.7807272,2963.8,2963.1,0.97844843]
[1766739408684,0.9089,2963.8,2963.1,0.97844843]
[1766739408895,0.9089,2963.8,2963.1,4.94095377]
[1766739409085,0.9089,2963.8,2963.2,1.16908665]
[1766739411295,0.002,2964.3,2963.6,0.96157878]
[1766739411700,3.37549544,2964.3,2963.6,0.96157878]
[1766739411879,4.28439544,2964.3,2963.6,0.96157878]
[1766739412066,5.0503628,2964.3,2963.6,0.96157878]
[1766739412268,5.0503628,2964.3,2963.2,0.42386974]
[1766739412269,0.9089,2964.2,2963.2,0.42386974]
[1766739412475,0.9089,2963.5,2962.8,0.9457]
[1766739412702,0.9089,2963.5,2962.9,0.97845071]
[1766739413189,3.37412753,2963.8,2963.0,0.9447]
[1766739413496,1.58370622,2963.7,2963.1,0.97844843]
[1766739413670,0.9089,2963.7,2963.1,0.97844843]
[1766739414067,0.9089,2963.7,2963.1,0.9447]
[1766739415905,4.28308746,2963.7,2963.1,0.9447]
[1766739416606,0.9089,2963.7,2963.1,0.9447]
[1766739419504,0.9109,2963.7,2963.1,0.96157878]
[1766739419703,0.002,2963.7,2963.2,0.9447]
[1766739425812,3.37617567,2963.7,2963.2,0.9447]
[1766739426011,0.002,2963.7,2963.3,0.01687878]
[1766739426208,0.9089,2963.6,2963.0,0.886]
[1766739426781,0.9089,2963.6,2963.0,4.26095718]
[1766739427509,0.9089,2963.6,2963.1,0.01687878]
[1766739428416,0.9089,2963.6,2963.2,0.0337473]
[1766739428718,0.002,2963.7,2963.5,0.01687878]
[1766739429011,1.73054614,2964.3,2963.5,0.96157878]
[1766739429012,0.9089,2964.2,2963.5,0.96157878]
[1766739429211,0.9089,2964.1,2963.6,0.03374274]
[1766739429415,0.9089,2964.1,2963.5,0.9447]
[1766739430714,0.9089,2964.1,2963.5,4.31908762]
[1766739431318,0.9089,2964.1,2963.6,0.03374274]
[1766739431719,0.9089,2964.1,2963.6,3.40792181]
[1766739432021,0.9089,2964.1,2963.6,4.18062275]
[1766739432202,0.9089,2964.1,2963.6,5.12532275]
[1766739432396,0.9089,2964.1,2963.6,1.75114368]
[1766739432602,0.9089,2964.1,2963.6,5.12540314]
[1766739433301,0.9109,2964.3,2963.6,5.12540314]
[1766739433505,0.9109,2964.3,2963.6,0.97844274]
[1766739433506,0.9089,2964.2,2963.6,0.97844274]
[1766739435121,0.9089,2964.2,2963.6,0.9447]
[1766739435323,0.002,2964.1,2963.6,4.31895995]
[1766739435505,0.9717,2964.1,2963.6,4.31895995]
[1766739437225,0.9717,2964.1,2963.6,0.9447]
[1766739438431,0.9717,2964.1,2963.6,5.09168472]
[1766739440229,0.002,2964.1,2963.7,0.9420416]
[1766739440534,0.002,2964.1,2963.7,4.3161119]
[1766739440908,0.002,2964.1,2963.7,0.9420416]
[1766739441101,0.002,2964.1,2963.6,0.77272544]
[1766739441428,0.9717,2964.1,2963.6,0.77272544]
[1766739441600,0.9717,2964.1,2963.6,4.14692338]
[1766739441805,0.9717,2964.1,2963.7,0.84072923]
[1766739442949,0.002,2964.1,2963.7,4.24862284]
[1766739443239,0.002,2964.1,2963.7,0.87447083]
[1766739443446,0.002,2964.1,2963.7,0.84072923]
[1766739444220,0.9717,2964.1,2963.5,4.26033425]
[1766739445013,0.002,2964.1,2963.5,4.26033425]
[1766739445243,0.9717,2964.1,2963.5,4.26033425]
[1766739446141,0.9717,2964.1,2963.5,8.54302264]
[1766739447724,0.002,2964.1,2963.6,0.94204274]
[1766739447924,0.002,2964.1,2963.7,1.76597654]
[1766739448247,0.002,2964.1,2963.8,0.03374046]
[1766739448737,0.9717,2964.1,2963.5,4.26033425]
[1766739448928,0.9717,2964.1,2963.6,1.23831321]
[1766739449128,0.9717,2964.1,2963.7,3.37416067]
[1766739449642,0.9717,2964.1,2963.7,3.40790227]
[1766739453563,0.002,2964.1,2963.7,4.31620227]
[1766739454265,0.002,2964.1,2963.7,3.40790227]
[1766739456455,0.9697,2964.0,2963.5,0.886]
[1766739456761,4.01507499,2964.1,2963.3,4.7483]
[1766739456762,0.9697,2963.8,2963.3,2.84]
[1766739457064,0.0337,2963.7,2963.2,4.25966796]
[1766739457240,0.0337,2963.8,2963.2,4.25966796]
[1766739457440,0.0337,2964.0,2963.2,4.25966796]
[1766739457860,0.0337,2964.0,2963.3,3.37460511]
[1766739458059,4.38088249,2963.9,2963.2,0.885]
[1766739458261,0.0337,2963.8,2963.6,0.001]
[1766739460031,0.0357,2964.1,2963.6,0.001]
[1766739460235,7.38879016,2964.1,2963.3,0.03374616]
[1766739460446,7.35509016,2964.1,2963.3,3.40826833]
[1766739460647,0.76920902,2964.0,2963.3,3.40826833]
[1766739461247,0.76920902,2964.0,2963.3,3.37452217]
[1766739461861,0.76920902,2964.0,2963.3,3.40826833]
[1766739462258,0.76920902,2964.0,2963.3,7.71738446]
[1766739462569,0.0337,2964.0,2963.3,7.6836383]
[1766739464173,0.0357,2964.1,2963.3,7.6836383]
[1766739464473,0.0357,2964.1,2963.6,0.9484]
[1766739464679,0.002,2964.1,2963.6,0.98214274]
[1766739464868,0.0357,2964.1,2963.6,0.9484]
[1766739465043,0.002,2964.1,2963.6,0.9484]
[1766739465373,0.0357,2964.1,2963.6,0.9484]
[1766739465557,0.002,2964.1,2963.6,0.9484]
[1766739465738,0.0357,2964.1,2963.6,0.9484]
[1766739465942,0.002,2964.1,2963.6,0.9484]
[1766739466142,0.0357,2964.1,2963.6,0.9484]
[1766739466343,0.002,2964.1,2963.6,4.3226631]
[1766739466543,0.0357,2964.1,2963.6,4.3226631]
[1766739466767,0.002,2964.1,2963.6,4.3226631]
[1766739466971,0.0357,2964.1,2963.3,3.37458872]
[1766739467781,0.0357,2964.1,2963.5,3.37433093]
[1766739467987,0.37681976,2964.1,2963.5,3.37433093]
[1766739468562,0.37681976,2964.1,2963.4,3.37450226]
[1766739468755,0.37681976,2964.1,2963.4,6.74900452]
[1766739469792,0.37681976,2964.1,2963.4,7.69740452]
[1766739471484,0.0357,2964.1,2963.4,7.69740452]
[1766739471789,0.002,2964.1,2963.4,7.69740452]
[1766739472093,0.0357,2964.1,2963.5,0.98214388]
[1766739472396,0.002,2964.1,2963.5,0.98214388]
[1766739472566,0.0357,2964.1,2963.5,0.98214388]
[1766739472758,0.002,2964.1,2963.7,0.9484]
[1766739472963,0.0357,2964.1,2963.7,0.9484]
[1766739473176,0.002,2964.1,2963.7,0.9484]
[1766739473376,0.0357,2964.1,2963.7,4.32254569]
[1766739473570,0.002,2964.1,2963.7,4.32254569]
[1766739473879,0.0357,2964.1,2963.7,4.32254569]
[1766739474183,0.002,2964.1,2963.7,4.32254569]
[1766739474382,0.0357,2964.1,2963.7,4.32254569]
[1766739474559,0.002,2964.1,2963.7,4.32254569]
[1766739474761,0.0357,2964.1,2963.7,4.32254569]
[1766739474995,0.002,2964.1,2963.8,0.9484]
[1766739475196,0.0357,2964.1,2963.8,0.9484]
[1766739475370,0.002,2964.1,2963.5,0.9484]
[1766739475568,0.0357,2964.1,2963.5,0.9484]
[1766739475795,0.002,2964.1,2963.5,0.9484]
[1766739476099,0.0357,2964.1,2963.5,0.9484]
[1766739476266,0.002,2964.1,2963.5,0.9484]
[1766739476466,0.0357,2964.1,2963.5,0.9484]
[1766739476679,0.002,2964.1,2963.6,3.37427453]
[1766739476984,0.0357,2964.1,2963.6,4.32267453]
[1766739477295,0.002,2964.1,2963.6,4.32267453]
[1766739477499,0.0357,2964.1,2963.6,4.32267453]
[1766739477688,0.002,2964.1,2963.6,4.32267453]
[1766739477876,0.0357,2964.1,2963.6,4.32267453]
[1766739478177,0.002,2964.1,2963.6,4.32267453]
[1766739478379,0.0357,2964.1,2963.6,4.32267453]
[1766739478562,0.002,2964.1,2963.6,4.32267453]
[1766739478768,0.0357,2964.1,2963.6,4.32267453]
[1766739479068,0.002,2964.1,2963.6,4.32267453]
[1766739479268,0.0357,2964.1,2963.6,4.32267453]
[1766739479482,0.002,2964.1,2963.6,4.32267453]
[1766739479696,0.0357,2964.1,2963.6,4.32267453]
[1766739479898,0.002,2964.1,2963.6,4.32267453]
[1766739480087,0.0357,2964.1,2963.6,4.32267453]
[1766739480274,0.002,2964.1,2963.6,4.32267453]
[1766739480481,0.0357,2964.1,2963.6,4.32267453]
[1766739480697,0.002,2964.1,2963.6,4.32267453]
[1766739480897,0.0357,2964.1,2963.6,4.32267453]
[1766739481074,0.002,2964.1,2963.6,4.32267453]
[1766739481273,0.0357,2964.1,2963.6,4.32267453]
[1766739481475,0.002,2964.1,2963.6,4.32267453]
[1766739481672,0.0357,2964.1,2963.6,4.32267453]
[1766739482002,0.002,2964.1,2963.6,4.32267453]
[1766739482299,0.0357,2964.1,2963.6,4.32267453]
[1766739482482,0.002,2964.1,2963.6,4.32267453]
[1766739482681,0.0357,2964.1,2963.6,4.32267453]
[1766739482992,0.002,2964.1,2963.6,4.32267453]
[1766739483192,0.0357,2964.1,2963.6,4.32267453]
[1766739483498,0.002,2964.1,2963.6,4.32267453]
[1766739483701,0.0357,2964.1,2963.6,4.32267453]
[1766739484025,0.002,2964.1,2963.6,4.32267453]
[1766739484206,0.0357,2964.1,2963.6,4.32267453]
[1766739484370,0.002,2964.1,2963.6,4.32267453]
[1766739484577,0.0357,2964.1,2963.6,4.32267453]
[1766739484786,0.002,2964.1,2963.6,4.32267453]
[1766739484985,0.0357,2964.1,2963.6,4.32267453]
[1766739485210,0.002,2964.1,2963.7,0.9484]
[1766739485512,0.0357,2964.1,2963.7,0.9484]
[1766739485719,3.97832184,2964.0,2963.1,1.841]
[1766739486007,0.52033218,2963.9,2963.1,0.9494]
[1766739486500,0.52033218,2963.9,2963.2,3.37472309]
[1766739486705,0.52033218,2963.9,2963.2,3.37473002]
[1766739487480,0.52033218,2963.9,2963.2,6.74946004]
[1766739487814,0.4498654,2963.8,2963.2,6.74946004]
[1766739488028,0.0337,2963.7,2963.2,6.74946004]
[1766739490093,0.0337,2963.7,2963.2,7.69786004]
[1766739490593,0.002,2963.8,2963.2,7.69786004]
[1766739490792,0.0357,2963.8,2963.2,7.69786004]
[1766739495523,0.0357,2963.8,2963.2,6.74946004]
[1766739495725,0.002,2963.8,2963.4,0.9631]
[1766739495927,0.0357,2963.8,2963.4,0.9631]
[1766739496091,0.002,2963.8,2963.4,0.9631]
[1766739496296,0.002,2963.8,2963.3,0.03374616]
[1766739496297,0.002,2963.8,2963.6,0.9631]
[1766739497425,0.0357,2964.1,2963.4,0.9631]
[1766739497624,0.002,2964.1,2963.6,0.9631]
[1766739497822,0.0357,2964.1,2963.6,0.9631]
[1766739498034,0.002,2964.1,2963.6,0.9631]
[1766739498231,0.0357,2964.1,2963.6,0.9631]
[1766739498525,0.002,2964.1,2963.6,0.9631]
[1766739498727,0.0357,2964.1,2963.6,0.9631]
[1766739498917,0.002,2964.1,2963.6,0.9631]
[1766739499095,0.0357,2964.1,2963.6,0.9631]
[1766739499295,0.002,2964.1,2963.6,0.9631]
[1766739499528,0.0357,2964.1,2963.6,0.9631]
[1766739499729,0.002,2964.1,2963.7,4.33726067]
[1766739500026,0.0357,2964.1,2963.7,4.33726067]
[1766739500226,0.002,2964.1,2963.7,4.33726067]
[1766739500430,0.0357,2964.1,2963.7,4.33726067]
[1766739500638,0.002,2964.1,2963.7,4.33726067]
[1766739500843,0.0357,2964.1,2963.7,4.33726067]
[1766739501039,0.002,2964.1,2963.7,7.71142134]
[1766739501325,0.886,2964.6,2963.8,0.9631]
[1766739501500,0.13701767,2964.7,2963.8,0.99684046]
[1766739501700,4.26081871,2964.9,2964.0,0.9631]
[1766739503113,0.002,2964.9,2964.2,0.9631]
[1766739503430,0.43892379,2964.8,2964.2,0.9631]
[1766739504929,0.43892379,2964.8,2964.2,4.33667035]
[1766739506030,0.43892379,2964.8,2964.2,0.9631]
[1766739506951,3.81183869,2964.8,2964.0,3.37474665]
[1766739507229,0.38138387,2964.7,2964.0,4.33784665]
[1766739507603,0.38138387,2964.7,2964.1,0.9631]
[1766739508130,0.38138387,2964.7,2964.1,4.33678333]
[1766739508631,0.38138387,2964.7,2964.1,0.9631]
[1766739509229,0.38138387,2964.7,2964.1,4.33680307]
[1766739509931,0.38138387,2964.7,2964.1,0.9631]
[1766739510836,0.41932226,2964.6,2964.0,0.001]
[1766739511513,0.41932226,2964.6,2964.0,3.3747674]
[1766739514134,0.41932226,2964.6,2964.0,0.001]
[1766739515236,0.41932226,2964.6,2964.0,0.9641]
[1766739518212,0.41932226,2964.6,2964.0,0.001]
[1766739518412,0.41932226,2964.6,2963.9,3.37382833]
[1766739521339,3.37302817,2964.7,2963.8,3.37402919]
[1766739521641,0.43892379,2964.8,2963.8,6.74807602]
[1766739521642,3.81187876,2964.8,2963.8,6.74807602]
[1766739521941,3.81187876,2964.8,2963.9,0.03373932]
[1766739523739,3.81187876,2964.8,2963.9,3.37387231]
[1766739525234,7.18483373,2964.8,2963.8,3.37498301]
[1766739525442,7.18483373,2964.8,2963.7,5.03123747]
[1766739525443,5.09317067,2964.7,2963.7,5.03123747]
[1766739525613,5.09317067,2964.7,2963.7,3.37410199]
[1766739525943,5.09317067,2964.7,2963.6,6.74850704]
[1766739526523,5.09317067,2964.7,2963.6,7.74340704]
[1766739527141,1.11636404,2964.7,2963.6,7.74340704]
[1766739527322,4.48943599,2964.7,2963.8,3.37404683]
[1766739528434,1.11636404,2964.7,2963.8,3.40778729]
[1766739528939,4.4894025,2964.7,2963.8,3.40778729]
[1766739531815,4.4894025,2964.7,2963.8,3.40878729]
[1766739532011,7.86244096,2964.7,2963.8,0.001]
[1766739532323,5.20462377,2964.6,2963.5,3.37435386]
[1766739532515,5.20462377,2964.6,2963.6,3.37420884]
[1766739533242,5.20462377,2964.6,2963.7,0.9949]
[1766739533439,3.37325012,2964.5,2963.6,3.37420884]
[1766739533748,3.37325012,2964.5,2963.6,3.37421678]
[1766739533947,4.5685521,2964.5,2963.5,3.3743767]
[1766739534321,4.5685521,2964.5,2963.8,0.9949]
[1766739534646,4.5685521,2964.5,2963.7,3.37415336]
[1766739534840,4.5685521,2964.5,2963.5,3.3743767]
[1766739535229,4.5685521,2964.5,2963.6,3.37419277]
[1766739535430,1.19185197,2964.4,2963.6,3.37419277]
[1766739535630,4.56523462,2964.4,2963.5,3.37438839]
[1766739536586,1.19185197,2964.4,2963.5,6.74877678]
[1766739540155,1.19185197,2964.4,2963.5,6.74977678]
[1766739540351,3.37328569,2964.5,2963.6,1.04865556]
[1766739540656,3.37328569,2964.5,2963.6,1.0823983]
[1766739540856,7.35197923,2964.6,2963.6,1.0823983]
[1766739541039,0.002,2964.6,2963.6,1.0823983]
[1766739541239,3.37514388,2964.6,2963.6,1.0823983]
[1766739541439,4.49172982,2964.6,2963.6,1.0823983]
[1766739542356,3.97680663,2964.4,2963.5,0.001]
[1766739542561,3.97680663,2964.1,2963.1,0.001]
[1766739542763,0.03374274,2964.0,2963.1,0.001]
[1766739542976,0.43479768,2964.0,2963.1,3.37582125]
[1766739543452,0.43479768,2964.0,2963.2,3.40846744]
[1766739544871,3.80869826,2964.0,2963.2,0.0337473]
[1766739546171,3.80869826,2964.0,2963.2,3.40845133]
[1766739546669,0.43479768,2964.0,2963.2,3.40845133]
[1766739546879,0.03374274,2964.0,2963.2,4.08698036]
[1766739547042,0.03374274,2964.0,2963.3,0.9949]
[1766739547771,1.11858594,2964.6,2963.2,7.46171038]
[1766739547772,6.74831908,2964.6,2963.9,0.9949]
[1766739547986,0.00728437,2964.5,2963.9,0.9949]
[1766739548964,3.37336391,2964.4,2963.9,0.9949]
[1766739549300,0.00728437,2964.3,2963.9,0.9949]
[1766739551075,0.00728437,2964.4,2963.9,0.9949]
[1766739552400,0.00728437,2964.5,2963.9,0.9949]
[1766739553496,0.00728437,2964.5,2963.9,4.36882161]
[1766739553797,0.00928437,2964.6,2963.9,4.80908878]
[1766739555000,0.00928437,2964.6,2964.0,0.9697]
[1766739557411,0.00928437,2964.6,2964.0,4.343512]
[1766739559409,0.00928437,2964.6,2964.0,3.373812]
[1766739561592,0.00928437,2964.6,2964.0,4.18959239]
[1766739562288,0.002,2964.7,2964.3,4.94650663]
[1766739562515,0.002,2964.7,2964.4,0.03373363]
[1766739562888,0.002,2964.7,2964.3,4.37689538]
[1766739563221,0.002,2964.7,2964.4,0.43768954]
[1766739563525,0.002,2964.7,2964.2,3.373535]
[1766739564815,0.002,2964.7,2964.3,0.001]
[1766739566333,0.002,2964.7,2964.0,2.67048039]
[1766739566502,0.002,2964.7,2964.1,3.37368628]
[1766739567721,0.002,2964.7,2964.0,4.25877189]
[1766739569749,0.002,2964.7,2964.0,0.885]
[1766739572837,0.002,2964.7,2964.0,0.886]
[1766739577048,3.97680663,2964.6,2964.0,0.886]
[1766739577212,0.39788066,2964.5,2964.0,0.886]
[1766739577616,0.002,2964.7,2964.1,0.9697]
[1766739577813,0.002,2964.7,2964.0,0.886]
[1766739578013,0.002,2964.7,2964.0,4.25981891]
[1766739578214,0.002,2964.7,2964.1,0.03373705]
[1766739580490,0.04129095,3330.3,2964.1,0.03373705]
[1766739580491,3.37222634,2965.4,2964.7,0.01687878]
[1766739580656,0.18974515,2965.3,2964.7,0.01687878]
[1766739580838,3.97680663,2965.1,2964.2,0.9697]
[1766739581038,3.97680663,2965.1,2964.3,0.03373477]
[1766739581239,4.16655178,2965.3,2964.3,0.9697]
[1766739581539,4.16655178,2965.3,2964.4,0.05061241]
[1766739582262,3.37245379,2965.2,2964.4,0.05061241]
[1766739582967,3.37245379,2965.2,2964.4,3.4239745]
[1766739583476,3.37245379,2965.2,2964.4,0.05061241]
[1766739583665,5.06794223,2965.1,2964.4,0.03373363]
[1766739585679,8.44051321,2965.1,2964.4,0.03373363]
[1766739586057,4.46370658,2965.1,2964.4,0.03373363]
[1766739586681,1.0911356,2965.1,2964.4,3.40709134]
[1766739586877,3.37249802,2965.2,2964.4,3.40709134]
[1766739590079,4.44912709,2965.3,2964.4,3.40709134]
[1766739591776,3.56412709,2965.3,2964.4,3.40709134]
[1766739592079,4.44912709,2965.3,2964.4,3.40709134]
[1766739592982,0.002,2965.2,2964.4,3.40709134]
[1766739593190,0.44511271,2965.1,2964.4,0.03373363]
[1766739593485,0.44511271,2965.1,2964.3,3.3734197]
[1766739596388,3.81771474,2965.1,2964.3,3.3734197]
[1766739597792,3.81771474,2965.1,2964.2,3.37359152]
[1766739598383,3.81771474,2965.1,2964.3,0.03373477]
[1766739598691,0.44511271,2965.1,2964.3,0.03373477]
[1766739599894,0.44511271,2965.1,2964.4,3.37336391]
[1766739600095,0.44511271,2965.1,2964.5,0.0337325]
[1766739600293,0.41566117,2965.0,2964.0,0.001]
[1766739600496,0.41566117,2965.0,2963.5,0.001]
[1766739600497,3.97811879,2964.5,2963.5,0.9539]
[1766739600794,4.39377996,2965.0,2963.6,3.40797332]
[1766739600795,0.0337,2964.4,2963.6,3.40797332]
[1766739600970,3.97811879,2964.4,2963.5,0.9539]
[1766739601174,0.43151188,2964.3,2964.0,0.001]
[1766739601371,0.43151188,2964.3,2963.5,0.001]
[1766739602496,3.80508281,2964.3,2963.5,0.001]
[1766739602663,7.17865374,2964.3,2963.5,0.001]
[1766739602867,7.14495374,2964.3,2963.5,0.001]
[1766739603070,1.14600725,2964.2,2963.5,0.001]
[1766739604299,3.97811879,2964.1,2963.1,0.9539]
[1766739604481,0.0337,2964.0,2963.1,0.9539]
[1766739604685,3.40753386,2964.0,2963.2,3.37466929]